bitfinex-derivatives/quotes_ETHF0:USTF0_20250213
["timestamp","ask_amount","ask_price","bid_price","bid_amount"]
[1739439461639,0.74507,2684.0,2683.8,0.5614]
[1739439462036,0.74507,2684.0,2683.8,1.30648]
[1739439462231,0.00555813,2684.1,2683.8,0.5614]
[1739439462436,0.74507,2683.9,2683.8,0.5614]
[1739439463443,3.21335813,2684.1,2683.8,1.3065]
[1739439463638,0.74507,2683.9,2683.8,1.3065]
[1739439466942,3.21335813,2684.1,2683.8,0.5614]
[1739439467142,0.74507,2684.0,2683.9,0.74506]
[1739439467843,0.74507,2683.9,2683.8,0.5614]
[1739439468038,0.00555813,2684.1,2683.8,0.5614]
[1739439468244,0.74507,2684.0,2683.9,0.74507]
[1739439468837,0.74507,2683.9,2683.8,0.5614]
[1739439469348,0.00555813,2684.1,2683.8,0.5614]
[1739439469554,0.74507,2683.9,2683.8,1.30649]
[1739439471050,0.00555813,2684.1,2683.8,0.5614]
[1739439471250,0.74507,2683.9,2683.8,1.30648]
[1739439471549,0.00555813,2684.1,2683.8,0.5614]
[1739439471856,0.74505,2684.0,2683.9,0.74505]
[1739439472048,0.74507,2683.9,2683.8,1.30649]
[1739439472254,0.00555813,2684.1,2683.8,0.5614]
[1739439472646,0.74507,2683.9,2683.8,1.30649]
[1739439472842,0.00555813,2684.1,2683.8,0.5614]
[1739439473247,0.74507,2683.9,2683.8,1.30648]
[1739439473447,0.74505,2684.0,2683.9,0.74506]
[1739439473651,0.74507,2683.9,2683.8,1.30648]
[1739439474154,0.00555813,2684.1,2683.8,0.5614]
[1739439474362,0.74507,2683.9,2683.8,1.30649]
[1739439475658,0.74506,2684.0,2683.9,0.74506]
[1739439476545,0.74507,2683.9,2683.8,1.30647]
[1739439476950,0.74507,2684.0,2683.9,0.74506]
[1739439477152,0.74506,2684.0,2683.9,0.74507]
[1739439478661,0.00555813,2684.1,2683.8,0.5614]
[1739439478965,0.00555813,2684.1,2684.0,0.74505]
[1739439480056,0.75057813,2684.1,2684.0,0.74505]
[1739439480263,0.00555813,2684.1,2683.8,3.7692]
[1739439480488,0.74507,2684.0,2683.9,0.74505]
[1739439480982,0.74506,2684.0,2683.9,0.74505]
[1739439483457,0.74507,2683.9,2683.8,3.7692]
[1739439483662,0.74507,2683.9,2683.8,4.5143]
[1739439483855,0.74507,2683.9,2683.8,1.3065]
[1739439486663,1.29697,2684.0,2683.9,0.74507]
[1739439491368,0.5519,2684.0,2683.8,0.5614]
[1739439491566,0.74507,2683.9,2683.8,1.30648]
[1739439491869,0.74507,2683.9,2683.8,0.5614]
[1739439492071,0.74507,2683.9,2683.8,1.3065]
[1739439495762,0.5519,2684.0,2683.8,0.5614]
[1739439495964,0.74507,2683.9,2683.8,1.30648]
[1739439496174,1.29697,2684.0,2683.9,0.74507]
[1739439496680,3.2078,2684.9,2683.9,3.29868902]
[1739439496863,3.95236,2685.8,2684.8,3.2078]
[1739439497064,1.94627733,2685.7,2685.3,3.29868902]
[1739439497260,0.06368733,2685.6,2685.0,3.29868902]
[1739439497467,0.74482,2684.9,2684.7,3.2078]
[1739439497664,0.5655,2684.8,2684.7,3.2078]
[1739439497872,0.5655,2684.8,2684.7,40.8]
[1739439498071,1.31032,2684.8,2684.7,40.8]
[1739439498673,1.31032,2684.8,2684.5,1.30249295]
[1739439499074,0.5655,2684.8,2684.5,41.35759295]
[1739439499877,0.5655,2684.8,2684.5,1.30248295]
[1739439500171,0.5655,2684.8,2684.5,0.55759295]
[1739439500577,0.5655,2684.8,2684.7,0.74485]
[1739439501074,0.5725,2685.2,2684.7,0.74484]
[1739439501378,0.5417,2685.0,2684.7,0.74484]
[1739439502277,1.28647,2685.0,2684.7,0.74484]
[1739439502475,0.5417,2685.0,2684.5,41.35759295]
[1739439502675,0.5417,2685.0,2684.5,1.30249295]
[1739439502974,0.5417,2685.0,2684.5,0.55759295]
[1739439502975,0.5547,2684.9,2684.5,0.55759295]
[1739439503171,0.5417,2685.0,2684.8,0.74482]
[1739439503377,0.5417,2685.0,2684.7,0.74484]
[1739439503675,0.5417,2685.0,2684.8,0.74482]
[1739439503977,1.28648,2685.0,2684.7,0.74485]
[1739439504377,0.5417,2685.0,2684.5,0.55759295]
[1739439504675,1.28648,2685.0,2684.7,0.74484]
[1739439504869,0.5417,2685.0,2684.5,0.55759295]
[1739439505070,1.28648,2685.0,2684.7,0.74484]
[1739439505273,0.5417,2685.0,2684.8,0.7448]
[1739439505578,1.28647,2685.0,2684.9,0.5407]
[1739439505777,0.6053931,2685.0,2684.9,0.5407]
[1739439505979,3.2078,2685.3,2684.9,0.5407]
[1739439506274,1.39731978,2685.2,2684.9,1.28548]
[1739439506475,0.5889,2685.2,2684.9,0.5407]
[1739439506870,0.74474,2685.1,2684.9,0.5407]
[1739439507376,0.5889,2685.2,2685.0,0.74475]
[1739439507570,1.33362,2685.2,2684.9,0.5407]
[1739439507772,1.33363,2685.2,2684.9,0.5407]
[1739439507970,0.5889,2685.2,2684.9,0.5407]
[1739439508170,3.7908,2685.6,2685.3,0.74468]
[1739439508375,0.80832432,2685.5,2685.2,0.74469]
[1739439508571,0.80832432,2685.5,2685.0,1.1484]
[1739439508572,0.06368432,2685.4,2685.0,45.24708902]
[1739439508772,0.06368432,2685.4,2685.3,0.74468]
[1739439508977,3.88848902,2686.0,2685.0,45.24708902]
[1739439508978,2.275,2685.9,2685.1,1.86186]
[1739439509278,0.74463,2685.5,2685.3,0.74467]
[1739439509475,2.275,2685.9,2685.4,0.5444]
[1739439509675,1.30989,2685.7,2685.5,0.74462]
[1739439509877,0.80827881,2685.6,2685.4,1.28904]
[1739439510076,0.5653,2685.7,2685.4,1.28903]
[1739439510272,0.06367874,2685.6,2685.4,0.5444]
[1739439510472,0.80828874,2685.6,2685.4,1.28904]
[1739439510676,0.74463,2685.5,2685.4,0.5444]
[1739439511081,0.74474,2685.1,2685.0,0.5907]
[1739439511779,0.5795,2685.3,2685.0,0.5907]
[1739439512083,0.5795,2685.3,2685.2,0.74471]
[1739439512281,4.8998,2685.7,2685.0,3.88938902]
[1739439512583,0.80828864,2685.6,2685.4,0.74464]
[1739439512883,3.2078,2685.7,2685.6,0.7446]
[1739439513183,0.06367631,2685.7,2685.6,0.74459]
[1739439513378,0.5795,2685.9,2685.5,1.1274]
[1739439513569,0.06367154,2685.8,2685.7,0.74455]
[1739439514079,0.06366976,2685.8,2685.7,0.74455]
[1739439514480,1.32403,2685.9,2685.6,0.5408]
[1739439514481,0.5795,2685.9,2685.6,0.5408]
[1739439514881,1.32402,2685.9,2685.8,0.74455]
[1739439515177,0.64316887,2685.9,2685.6,0.5408]
[1739439515382,0.5795,2685.9,2685.8,0.74455]
[1739439515577,0.0636681,2685.9,2685.8,0.74455]
[1739439515773,0.06366385,2686.1,2685.7,1.86143]
[1739439515974,3.29868902,2686.6,2685.6,7.04728902]
[1739439515975,3.2078,2686.7,2686.0,3.2078]
[1739439516279,5.9835,2687.1,2686.3,3.29868902]
[1739439516473,0.74425,2686.9,2686.6,0.7443]
[1739439516779,5.9835,2687.1,2686.6,0.7443]
[1739439516780,3.7491,2687.1,2686.6,3.29868902]
[1739439516977,6.185,2688.5,2686.8,3.2078]
[1739439516978,1.691,2687.4,2686.8,3.2078]
[1739439517284,3.2078,2688.1,2687.8,0.74398]
[1739439517483,0.3004138,2688.3,2688.0,3.29868902]
[1739439517688,3.2078,2688.4,2688.0,3.29868902]
[1739439517978,3.2078,2688.4,2687.7,6.50648902]
[1739439517979,3.501012,2688.4,2687.7,6.50648902]
[1739439518171,3.2078,2688.1,2687.4,3.30427135]
[1739439518376,3.27093035,2688.0,2687.4,0.00558233]
[1739439518580,0.74407,2687.5,2687.4,0.00558233]
[1739439518978,6.06314264,2687.5,2686.3,3.2078]
[1739439519179,0.74433,2686.6,2686.3,3.2078]
[1739439519383,0.584,2686.5,2686.3,3.2078]
[1739439519771,6.50648902,2686.4,2685.7,3.2078]
[1739439519976,8.19648902,2686.4,2685.7,3.2078]
[1739439520172,3.29868902,2686.1,2685.8,0.00558233]
[1739439520379,0.5827,2686.0,2685.8,0.00558233]
[1739439520884,0.74452,2685.9,2685.8,0.00558233]
[1739439521380,2.43452,2685.9,2685.8,0.00558233]
[1739439521585,2.49770409,2685.9,2685.8,0.00558233]
[1739439521785,1.69,2685.9,2685.8,0.00558233]
[1739439521984,2.43452,2685.9,2685.8,0.00558233]
[1739439522379,0.5827,2686.0,2685.8,3.21338233]
[1739439522585,0.5424,2686.2,2685.8,3.21338233]
[1739439522785,1.1209,2686.2,2685.9,0.5725]
[1739439523084,1.86535,2686.2,2685.9,0.5725]
[1739439523486,1.1209,2686.2,2685.9,0.5725]
[1739439523785,0.74449,2686.0,2685.9,0.5725]
[1739439523984,0.74452,2685.9,2685.8,0.00558233]
[1739439527893,0.80770078,2685.9,2685.8,0.00558233]
[1739439528683,1.86144,2685.7,2685.0,3.2078]
[1739439528890,0.5845,2686.0,2684.3,1.86238]
[1739439528891,3.29868902,2685.2,2684.6,0.5524]
[1739439529084,1.1584,2685.1,2684.6,0.5524]
[1739439529788,0.74485,2684.7,2684.6,0.55798233]
[1739439529992,1.1584,2685.1,2684.6,0.55798233]
[1739439530192,0.74481,2684.9,2684.6,0.55798233]
[1739439530385,0.74484,2684.8,2684.6,0.55798233]
[1739439530586,0.00558233,2684.9,2684.6,1.30284233]
[1739439530985,0.00558233,2684.9,2684.7,0.74484]
[1739439531193,0.75039233,2684.9,2684.6,4.51065233]
[1739439531587,0.00558233,2684.9,2684.7,0.74485]
[1739439531783,0.75039233,2684.9,2684.6,3.76578233]
[1739439531982,0.74483,2684.8,2684.6,4.51065233]
[1739439532181,0.00558233,2684.9,2684.6,3.76578233]
[1739439532387,0.74485,2684.7,2684.6,3.76578233]
[1739439532583,0.00558233,2684.9,2684.6,3.76578233]
[1739439532792,0.74485,2684.7,2684.6,3.76578233]
[1739439539189,0.74485,2684.7,2684.6,0.55798233]
[1739439539996,4.8988,2684.8,2683.8,3.29868902]
[1739439540203,3.86298902,2684.6,2684.0,3.2078]
[1739439540698,0.74502,2684.1,2684.0,3.2078]
[1739439540893,0.74505,2684.0,2683.9,0.5478]
[1739439541289,3.29868902,2684.0,2683.1,3.2078]
[1739439541495,0.74518,2683.5,2683.4,0.5427]
[1739439541695,0.74527,2683.2,2683.1,44.5827]
[1739439541890,3.29868902,2683.7,2683.1,44.5827]
[1739439542094,0.541,2683.8,2683.6,3.2078]
[1739439542301,0.5533,2683.9,2683.6,3.2078]
[1739439542501,0.74513,2683.7,2683.6,3.2078]
[1739439542688,0.74517,2683.6,2683.4,0.00558233]
[1739439543004,0.74518,2683.5,2683.4,0.00558233]
[1739439543296,3.95298,2683.5,2683.4,0.00558233]
[1739439544003,4.55722207,2683.5,2683.4,0.00558233]
[1739439544197,1.34942207,2683.5,2683.4,0.00558233]
[1739439544497,4.8988,2683.8,2683.4,0.00558233]
[1739439544696,0.00558233,2684.0,2683.5,3.2078]
[1739439544902,0.00558233,2684.0,2683.6,0.593]
[1739439545199,3.29868902,2684.6,2684.3,0.74495]
[1739439545394,0.06321744,2684.5,2684.4,0.5662]
[1739439545593,4.8988,2684.9,2684.4,0.5662]
[1739439545594,8.19748902,2684.9,2684.4,0.5662]
[1739439545899,0.06320732,2684.8,2684.4,0.5662]
[1739439546203,0.74491,2684.5,2684.4,0.5662]
[1739439546694,8.20307135,2684.9,2684.4,0.5662]
[1739439546997,0.06321422,2684.8,2684.4,0.5662]
[1739439547197,0.00558233,2684.9,2684.5,3.2078]
[1739439547503,0.74482,2684.8,2684.5,3.8008]
[1739439547892,0.00558233,2684.9,2684.5,3.8008]
[1739439548295,0.00558233,2684.9,2684.7,0.74484]
[1739439548597,0.75038233,2684.9,2684.8,0.5461]
[1739439549295,0.74488,2684.6,2684.5,3.8008]
[1739439549608,0.74502,2684.1,2684.0,0.5461]
[1739439549794,4.04370902,2684.1,2684.0,0.5461]
[1739439549992,3.29868902,2684.4,2684.0,3.7539]
[1739439550198,3.29868902,2684.7,2684.3,3.2078]
[1739439550390,3.29868902,2684.7,2684.5,0.7449]
[1739439550596,3.29868902,2684.7,2684.4,0.5747]
[1739439550796,0.00558233,2684.9,2684.6,3.2078]
[1739439551093,0.00558233,2684.9,2684.8,0.74482]
[1739439551294,0.00558233,2684.9,2684.6,3.2078]
[1739439551593,0.00558233,2684.9,2684.8,0.74482]
[1739439552101,6.50648902,2685.6,2684.8,40.8]
[1739439552299,0.74473,2685.2,2685.0,0.74476]
[1739439552800,0.74473,2685.2,2684.9,0.5747]
[1739439552998,0.74473,2685.2,2685.0,0.74477]
[1739439553395,0.00558233,2685.4,2684.9,0.5747]
[1739439553599,0.75026233,2685.4,2685.2,0.7447]
[1739439553798,0.00558233,2685.4,2684.9,1.1186]
[1739439554196,0.00558233,2685.4,2685.1,3.2078]
[1739439554398,0.00558233,2685.4,2685.3,0.74468]
[1739439554604,0.00558233,2685.4,2685.1,3.2078]
[1739439554803,0.75025233,2685.4,2685.2,0.74471]
[1739439554992,0.00558233,2685.4,2685.1,3.2078]
[1739439555202,0.74471,2685.2,2685.1,3.2078]
[1739439555399,0.00558233,2685.4,2685.1,3.2078]
[1739439555902,0.00558233,2685.4,2685.2,0.7447]
[1739439556103,0.00558233,2685.4,2685.1,3.2078]
[1739439556305,0.00558233,2685.4,2685.3,0.74468]
[1739439560608,0.00558233,2685.4,2685.1,3.2078]
[1739439560906,0.00558233,2685.4,2685.3,0.74468]
[1739439561309,0.00558233,2685.4,2685.3,6.74468]
[1739439561603,3.29868902,2685.9,2685.3,0.74468]
[1739439561800,3.29868902,2685.9,2685.4,3.7579]
[1739439562000,0.74453,2685.9,2685.8,0.74455]
[1739439562199,0.74456,2685.8,2685.7,0.74455]
[1739439562403,0.5585,2686.1,2685.5,0.5888]
[1739439562602,0.5585,2686.1,2685.8,0.74452]
[1739439562603,0.74454,2685.9,2685.8,0.74452]
[1739439563799,0.00554695,2686.0,2685.9,0.74452]
[1739439564004,0.00554695,2686.0,2685.8,0.5834]
[1739439564204,0.75005695,2686.0,2685.9,0.74452]
[1739439564405,0.00554695,2686.0,2685.8,0.5834]
[1739439564599,0.00554695,2686.0,2685.7,3.2078]
[1739439564799,0.74455,2685.8,2685.7,3.95237]
[1739439565497,0.00554695,2686.0,2685.9,0.74452]
[1739439565705,0.00554695,2686.0,2685.8,1.30063]
[1739439566004,0.00554695,2686.0,2685.7,3.95237]
[1739439566209,0.74455,2685.8,2685.7,3.2078]
[1739439567211,0.7446,2685.6,2685.5,1.1449]
[1739439567510,5.16002902,2685.9,2685.4,3.2078]
[1739439567511,1.86139,2685.8,2685.4,3.2078]
[1739439567717,0.74463,2685.5,2685.4,3.95246]
[1739439568014,0.5868,2685.7,2685.4,3.2078]
[1739439568405,1.33137,2685.7,2685.6,0.7446]
[1739439568603,0.5868,2685.7,2685.6,0.7446]
[1739439569105,1.33137,2685.7,2685.6,0.7446]
[1739439569513,0.74463,2685.6,2685.5,0.74462]
[1739439569710,0.5868,2685.7,2685.4,3.2078]
[1739439569910,1.33139,2685.7,2685.6,0.7446]
[1739439570513,0.5868,2685.7,2685.4,3.2078]
[1739439570811,0.74463,2685.5,2685.4,3.2078]
[1739439571809,0.74471,2685.2,2685.1,0.5574]
[1739439572017,3.29868902,2685.3,2685.0,4.49916]
[1739439572212,0.74474,2685.1,2685.0,3.7544]
[1739439572414,0.74474,2685.1,2685.0,3.2078]
[1739439573112,0.74474,2685.1,2685.0,3.95255]
[1739439573312,1.1574,2685.2,2685.0,3.2078]
[1739439573513,0.74474,2685.1,2685.0,3.95255]
[1739439574213,1.1574,2685.2,2685.0,3.95255]
[1739439574214,1.1574,2685.2,2685.0,3.2078]
[1739439574413,0.74474,2685.1,2685.0,3.2078]
[1739439574818,0.74474,2685.1,2685.0,3.95257]
[1739439575315,1.1574,2685.2,2685.0,3.2078]
[1739439575713,0.74474,2685.1,2685.0,3.2078]
[1739439575919,0.74474,2685.1,2685.0,3.95257]
[1739439576119,1.1574,2685.2,2685.0,3.95255]
[1739439576417,1.90214,2685.2,2685.0,3.95255]
[1739439576617,0.74474,2685.1,2685.0,3.95255]
[1739439576817,6.50648902,2685.9,2685.1,1.86186]
[1739439577020,6.50648902,2685.9,2685.4,0.74464]
[1739439577021,0.74464,2685.5,2685.4,0.74464]
[1739439577218,1.86144,2685.7,2685.3,3.2078]
[1739439577414,3.29868902,2685.6,2685.2,0.577]
[1739439577614,0.74474,2685.1,2685.0,3.2078]
[1739439578015,0.74474,2685.1,2685.0,3.95257]
[1739439578224,0.74474,2685.1,2685.0,3.2078]
[1739439578412,0.74477,2685.0,2684.9,0.5701]
[1739439578914,0.74477,2685.0,2684.9,1.3149]
[1739439579122,0.5736,2685.2,2684.9,0.5701]
[1739439579317,0.5736,2685.2,2685.1,0.74474]
[1739439579718,3.29868902,2685.3,2685.1,0.74474]
[1739439579917,0.74471,2685.2,2685.1,0.74474]
[1739439580116,0.5884,2685.4,2684.9,0.5701]
[1739439580318,0.74477,2685.0,2684.9,0.5701]
[1739439580717,0.74477,2685.0,2684.9,1.3149]
[1739439580918,0.74477,2685.0,2684.9,0.5701]
[1739439582926,0.74477,2685.0,2684.9,3.7779]
[1739439583218,0.74477,2685.0,2684.9,3.2078]
[1739439584124,3.29868902,2685.0,2684.8,0.00558233]
[1739439584326,1.8773,2684.9,2684.8,0.00558233]
[1739439586227,1.86238,2684.4,2683.9,3.2078]
[1739439586428,0.74505,2684.0,2683.9,3.7539]
[1739439587026,0.74513,2683.7,2683.6,11.11418658]
[1739439587224,3.29868902,2684.0,2683.7,0.00558233]
[1739439587424,0.7451,2683.8,2683.7,0.00558233]
[1739439589023,6.50648902,2684.0,2683.7,0.00558233]
[1739439589229,0.7451,2683.8,2683.7,0.00558233]
[1739439590035,0.00558233,2684.2,2683.7,3.21338233]
[1739439590231,0.75058233,2684.2,2683.9,0.74507]
[1739439590532,0.75058233,2684.2,2684.0,40.8]
[1739439591227,0.00558233,2684.2,2684.1,0.74502]
[1739439593225,3.2078,2684.6,2684.1,0.74502]
[1739439593534,3.29868902,2684.9,2684.4,3.2078]
[1739439593722,3.29868902,2684.9,2684.5,1.1021]
[1739439593929,0.74488,2684.6,2684.5,1.84699]
[1739439595131,0.74488,2684.6,2684.5,1.1021]
[1739439595630,0.74488,2684.6,2684.5,0.5395]
[1739439595830,0.74499,2684.2,2684.1,3.7704]
[1739439596026,0.74499,2684.2,2684.1,0.5396]
[1739439597729,0.74505,2684.0,2683.9,0.5865]
[1739439598032,0.7451,2683.8,2683.7,0.00558233]
[1739439598225,3.81219296,2684.2,2683.7,0.00558233]
[1739439598431,0.5482,2684.1,2683.7,0.00558233]
[1739439598830,0.74507,2684.0,2683.8,0.74509]
[1739439599033,0.5482,2684.1,2683.7,0.00558233]
[1739439599235,3.2078,2684.5,2683.9,3.2078]
[1739439599534,0.74498,2684.3,2684.1,0.745]
[1739439599938,0.74498,2684.3,2684.2,0.5402]
[1739439600138,7.02553991,2684.8,2684.2,0.5402]
[1739439600332,0.74492,2684.5,2684.3,0.74495]
[1739439600540,0.74496,2684.3,2684.2,0.5402]
[1739439601137,0.74502,2684.1,2684.0,0.5865]
[1739439601332,0.74505,2684.0,2683.9,0.5402]
[1739439601636,0.7451,2683.8,2683.7,0.00558233]
[1739439602441,1.3189,2683.8,2683.7,0.00558233]
[1739439603744,3.2078,2683.9,2683.7,0.00558233]
[1739439603937,1.691,2684.1,2683.7,3.21338233]
[1739439604135,3.2078,2684.4,2683.8,0.5409]
[1739439604340,0.5839,2684.7,2684.1,3.2078]
[1739439604644,0.00554695,2684.8,2684.4,3.2078]
[1739439604835,0.00554695,2684.8,2684.5,1.1397]
[1739439605139,0.75038695,2684.8,2684.5,1.88458]
[1739439605341,0.00554695,2684.8,2684.5,1.1397]
[1739439605534,0.00554695,2684.8,2684.5,1.88459]
[1739439605742,0.75037695,2684.8,2684.6,0.74487]
[1739439606039,0.75037695,2684.8,2684.5,1.1397]
[1739439606040,0.74488,2684.6,2684.5,0.5705]
[1739439606239,3.81773991,2684.8,2684.2,0.5437]
[1739439606539,3.81773991,2684.8,2684.2,1.1142]
[1739439606540,0.74496,2684.3,2684.2,1.1142]
[1739439606745,3.2078,2684.4,2683.7,0.00558233]
[1739439606930,0.7451,2683.8,2683.7,0.00558233]
[1739439607640,0.80833756,2683.8,2683.7,0.00558233]
[1739439607838,3.2078,2684.5,2683.7,3.95851233]
[1739439608041,3.81219296,2684.6,2683.8,3.7694]
[1739439608238,0.745,2684.2,2684.0,0.74504]
[1739439608433,3.81219296,2684.6,2683.8,3.7694]
[1739439608844,0.74494,2684.4,2683.8,3.7694]
[1739439609144,1.6741,2684.7,2684.1,3.2078]
[1739439609345,0.74492,2684.5,2684.1,3.2078]
[1739439609640,1.1311,2684.7,2684.4,0.74493]
[1739439609836,0.00554695,2684.8,2684.2,0.5392]
[1739439610040,0.74492,2684.5,2684.3,1.30655]
[1739439610241,0.59784695,2684.8,2684.3,0.5616]
[1739439610938,0.00554695,2684.8,2684.5,3.2078]
[1739439611145,0.00554695,2684.8,2684.7,0.74485]
[1739439611843,0.00554695,2684.8,2684.5,3.2078]
[1739439612044,0.00554695,2684.8,2684.5,3.95271]
[1739439612340,3.2078,2684.7,2684.4,0.5559]
[1739439612537,0.74491,2684.5,2684.4,0.5559]
[1739439612737,0.74493,2684.4,2684.3,0.5616]
[1739439613637,3.2078,2684.4,2683.8,0.5597]
[1739439613838,0.74507,2683.9,2683.8,1.1162]
[1739439614039,0.74507,2683.9,2683.8,0.5565]
[1739439614239,0.7451,2683.8,2683.7,0.00558233]
[1739439615841,3.27054715,2683.8,2683.3,0.5565]
[1739439616048,0.74524,2683.3,2683.2,3.2078]
[1739439616345,0.5747,2683.7,2683.2,3.2078]
[1739439616543,0.7452,2683.5,2683.2,3.95305]
[1739439616743,0.74522,2683.4,2683.2,3.2078]
[1739439616947,0.74519,2683.5,2683.2,3.95305]
[1739439617338,0.74524,2683.3,2683.2,3.2078]
[1739439620141,0.5747,2683.7,2683.2,3.2078]
[1739439620342,0.5747,2683.7,2683.3,0.59]
[1739439620850,0.74518,2683.5,2683.3,1.33522]
[1739439621238,0.5747,2683.7,2683.3,0.59]
[1739439621239,0.74521,2683.4,2683.3,0.59]
[1739439625951,0.74524,2683.3,2683.2,3.2078]
[1739439626152,0.5432,2683.3,2683.2,3.2078]
[1739439626352,1.28844,2683.3,2683.2,3.2078]
[1739439627552,1.28844,2683.3,2683.0,0.00558233]
[1739439627851,0.74529,2683.1,2683.0,0.00558233]
[1739439630456,0.74529,2683.1,2683.0,0.75090233]
[1739439630759,0.74529,2683.1,2683.0,0.00558233]
[1739439631355,0.00558233,2683.4,2683.0,0.00558233]
[1739439631548,0.74527,2683.2,2683.1,0.74527]
[1739439631753,0.74526,2683.3,2683.2,0.74526]
[1739439631955,0.00558233,2683.4,2683.3,0.74524]
[1739439632154,0.75079233,2683.4,2683.3,0.74524]
[1739439632355,0.00558233,2683.4,2683.3,0.74524]
[1739439632565,0.00558233,2683.4,2683.0,0.56028233]
[1739439632762,0.74529,2683.2,2683.1,0.74529]
[1739439633262,0.74529,2683.1,2683.0,1.30559233]
[1739439633464,1.86863233,2683.4,2683.0,0.56028233]
[1739439633760,0.74529,2683.1,2683.0,0.56028233]
[1739439633957,0.74529,2683.1,2683.0,0.00558233]
[1739439635162,0.74529,2683.1,2683.0,0.75090233]
[1739439635362,0.74529,2683.1,2683.0,0.00558233]
[1739439635557,0.5907,2683.2,2683.0,0.00558233]
[1739439635558,0.00558233,2683.4,2683.0,0.00558233]
[1739439635762,0.74524,2683.3,2683.2,0.74525]
[1739439636663,0.00558233,2683.4,2683.0,0.00558233]
[1739439636862,0.7453,2683.2,2683.1,0.74528]
[1739439637162,0.7453,2683.1,2683.0,0.75088233]
[1739439637558,0.7453,2683.1,2683.0,0.00558233]
[1739439638462,0.74529,2683.2,2683.1,0.74526]
[1739439639064,0.00558233,2683.4,2683.0,1.86886233]
[1739439639364,0.7453,2683.1,2683.0,0.00558233]
[1739439641772,0.7453,2683.1,2682.6,0.5547]
[1739439641773,3.2078,2683.1,2682.6,0.5547]
[1739439642063,0.74543,2682.6,2682.5,3.2078]
[1739439644172,0.5921,2682.6,2682.5,3.95326]
[1739439644379,1.691,2682.7,2682.5,3.2078]
[1739439645170,2.43642,2682.7,2682.5,3.2078]
[1739439645376,0.74543,2682.6,2682.5,3.2078]
[1739439645875,0.74543,2682.6,2682.5,3.95326]
[1739439646076,2.43642,2682.7,2682.5,3.2078]
[1739439646374,4.96995461,2683.0,2682.5,5.07142]
[1739439646580,1.691,2683.0,2682.8,0.74537]
[1739439646882,1.691,2683.0,2682.5,3.2078]
[1739439647775,0.74543,2682.6,2682.5,3.95325]
[1739439647975,0.74543,2682.6,2682.5,3.95324]
[1739439648175,0.7454,2682.8,2682.7,0.7454]
[1739439648376,0.74537,2682.9,2682.8,0.74536]
[1739439648573,0.74543,2682.6,2682.5,3.2078]
[1739439649075,3.27895461,2683.0,2682.5,3.2078]
[1739439649273,0.7454,2682.8,2682.7,0.7454]
[1739439649477,3.27895461,2683.0,2682.5,3.2078]
[1739439649676,3.2078,2683.1,2682.5,3.2078]
[1739439649876,3.2078,2683.1,2682.6,0.5898]
[1739439650172,0.7454,2682.7,2682.6,0.5898]
[1739439650476,0.5948,2683.2,2682.6,0.5898]
[1739439650874,0.74537,2682.9,2682.8,0.74534]
[1739439651074,0.74537,2682.9,2682.8,0.5849]
[1739439651271,0.74537,2682.9,2682.8,1.33028]
[1739439651474,0.74537,2682.9,2682.8,0.5849]
[1739439652482,0.74541,2682.7,2682.6,1.33522]
[1739439653981,0.74541,2682.7,2682.6,0.5898]
[1739439654180,0.74541,2682.7,2682.6,1.33523]
[1739439654482,0.74541,2682.7,2682.6,0.5898]
[1739439655185,0.74541,2682.7,2682.6,1.33523]
[1739439655576,0.74541,2682.7,2682.6,0.5898]
[1739439657281,1.29989,2682.8,2682.7,0.74541]
[1739439657489,0.5545,2682.8,2682.7,0.74541]
[1739439657789,1.29988,2682.8,2682.7,0.74541]
[1739439657989,0.74541,2682.7,2682.6,1.33521]
[1739439658383,0.74541,2682.7,2682.6,0.5898]
[1739439658589,0.74543,2682.6,2682.5,3.7681]
[1739439658778,0.74543,2682.6,2682.5,3.2078]
[1739439660189,1.29662,2682.7,2682.6,0.74543]
[1739439660484,0.74542,2682.7,2682.6,0.74543]
[1739439660685,2.2455,2682.8,2682.5,3.2078]
[1739439660884,0.74542,2682.7,2682.6,0.74541]
[1739439661590,0.74543,2682.6,2682.5,3.2078]
[1739439662687,0.74542,2682.7,2682.5,3.2078]
[1739439662993,0.74537,2682.9,2682.8,0.74535]
[1739439663185,0.74535,2683.0,2682.9,0.74533]
[1739439663382,0.74535,2683.0,2682.9,0.5669]
[1739439663586,0.74541,2682.7,2682.6,1.29943]
[1739439663787,0.74541,2682.7,2682.6,1.1046]
[1739439664987,0.74541,2682.7,2682.6,1.85003]
[1739439665490,1.86865233,2683.4,2682.6,5.12898461]
[1739439665706,0.74532,2683.1,2683.0,0.74528]
[1739439666595,0.00558233,2683.4,2682.8,3.2078]
[1739439666790,0.74534,2683.0,2682.9,0.74532]
[1739439666989,1.86311,2683.3,2682.8,3.2078]
[1739439667185,0.74535,2682.9,2682.8,3.2078]
[1739439667390,0.7454,2682.8,2682.7,0.74537]
[1739439667696,0.74541,2682.7,2682.6,1.85002]
[1739439668494,0.74541,2682.7,2682.6,1.1046]
[1739439669198,0.74541,2682.7,2682.6,1.85003]
[1739439669394,0.5384,2682.9,2682.6,1.1046]
[1739439669690,0.74541,2682.8,2682.7,0.74538]
[1739439669896,0.74536,2683.0,2682.9,0.74532]
[1739439670098,0.5431,2683.3,2682.8,3.2078]
[1739439670398,0.74532,2683.1,2683.0,0.74528]
[1739439670600,0.74529,2683.2,2683.1,0.74527]
[1739439671193,0.5431,2683.3,2682.8,5.07123]
[1739439671194,0.5431,2683.3,2682.8,3.2078]
[1739439671404,0.7453,2683.2,2683.1,0.74527]
[1739439671596,0.5431,2683.3,2683.2,0.74527]
[1739439671597,1.28837,2683.3,2683.2,0.74527]
[1739439671798,0.7453,2683.2,2683.1,0.74527]
[1739439673194,0.7453,2683.2,2682.8,5.07124]